bitfinex/quotes_BTCUSD_20260310
["timestamp","ask_amount","ask_price","bid_price","bid_amount"]
[1773102109173,0.03,68675.0,68668.0,0.12861826]
[1773102109574,0.00022001,68685.0,68668.0,0.12861826]
[1773102109937,0.00022001,68685.0,68671.0,0.12474617]
[1773102110060,0.00022001,68685.0,68673.0,0.12474617]
[1773102111886,0.00022001,68688.0,68673.0,0.12474617]
[1773102112085,0.00022001,68688.0,68675.0,0.12474617]
[1773102112723,0.00022001,68681.0,68675.0,0.12474617]
[1773102113455,0.00022001,68681.0,68674.0,0.07280775]
[1773102114446,0.03,68684.0,68675.0,0.12574617]
[1773102114596,0.00010043,68684.0,68675.0,0.12574617]
[1773102114810,0.00022001,68688.0,68678.0,0.17376519]
[1773102115012,0.00562,68696.0,68682.0,0.17376519]
[1773102115180,0.00562,68696.0,68683.0,0.12474617]
[1773102115833,0.00562,68696.0,68687.0,0.17376519]
[1773102115986,0.03562,68696.0,68687.0,0.17524519]
[1773102116183,0.03562,68696.0,68688.0,0.07279291]
[1773102116394,0.03562,68696.0,68688.0,0.2465581]
[1773102117044,0.00562,68696.0,68688.0,0.2465581]
[1773102118329,0.00562,68696.0,68688.0,0.07279291]
[1773102119487,0.12803468,68695.0,68686.0,0.17376519]
[1773102119685,0.03,68688.0,68674.0,0.07280563]
[1773102119816,0.04472306,68684.0,68675.0,0.00148]
[1773102120626,0.0001149,68688.0,68676.0,0.07280563]
[1773102120829,0.00736153,68684.0,68673.0,0.07280813]
[1773102121083,0.00736153,68682.0,68673.0,0.07280813]
[1773102121661,0.03,68683.0,68673.0,0.07280813]
[1773102121921,0.03,68682.0,68673.0,0.07280813]
[1773102122124,0.00736153,68681.0,68673.0,0.07280813]
[1773102122677,0.03,68682.0,68673.0,0.07280813]
[1773102123073,0.03,68681.0,68673.0,0.1975543]
[1773102123280,0.03,68681.0,68673.0,0.12474617]
[1773102123482,0.03,68681.0,68672.0,0.07280881]
[1773102124011,0.00736153,68683.0,68672.0,0.07280881]
[1773102125577,0.03,68681.0,68672.0,0.07280881]
[1773102125798,0.00736153,68680.0,68672.0,0.07280881]
[1773102127235,0.00736153,68680.0,68670.0,0.00148]
[1773102127703,0.00736153,68680.0,68672.0,0.0002]
[1773102128612,0.03,68679.0,68672.0,0.0002]
[1773102128823,0.00736153,68676.0,68665.0,0.0002]
[1773102130146,0.00736153,68675.0,68665.0,0.0002]
[1773102131393,0.07280775,68674.0,68665.0,0.0002]
[1773102131593,0.07280775,68674.0,68661.0,0.07302048]
[1773102131594,0.00736153,68672.0,68661.0,0.07302048]
[1773102132852,0.00736153,68670.0,68661.0,0.07302048]
[1773102133066,0.00736153,68667.0,68656.0,0.07302666]
[1773102133282,0.00736153,68665.0,68656.0,0.0002]
[1773102133734,0.03,68666.0,68656.0,0.0002]
[1773102133943,0.03,68666.0,68656.0,0.12763479]
[1773102134151,0.03,68665.0,68656.0,0.12763479]
[1773102134366,0.03,68665.0,68656.0,0.12801822]
[1773102135162,0.00736153,68667.0,68656.0,0.12801822]
[1773102135721,0.03,68668.0,68658.0,0.12743479]
[1773102136358,0.00736153,68669.0,68658.0,0.12743479]
[1773102136359,0.03,68667.0,68658.0,0.12743479]
[1773102137329,0.03,68666.0,68658.0,0.12743479]
[1773102137528,0.03,68666.0,68659.0,0.07282366]
[1773102138344,0.03,68665.0,68659.0,0.07282366]
[1773102138792,0.07280714,68675.0,68659.0,0.07282366]
[1773102138793,0.07280024,68683.0,68659.0,0.07282366]
[1773102139015,0.00022001,68684.0,68661.0,0.12743479]
[1773102139016,0.00736153,68681.0,68661.0,0.12743479]
[1773102139214,0.00148,68680.0,68661.0,0.12743479]
[1773102139357,0.00736153,68679.0,68661.0,0.12743479]
[1773102139709,0.00736153,68679.0,68663.0,0.12743479]
[1773102139942,0.00736153,68678.0,68662.0,0.07282048]
[1773102141517,0.10280247,68679.0,68662.0,0.07282048]
[1773102141518,0.00736153,68676.0,68662.0,0.07282048]
[1773102141736,0.00736153,68671.0,68657.0,0.07282578]
[1773102141910,0.00736153,68671.0,68661.0,0.00148]
[1773102142146,0.03,68672.0,68661.0,0.12891479]
[1773102142667,0.00736153,68682.0,68661.0,0.12891479]
[1773102143125,0.00022001,68684.0,68671.0,0.12743479]
[1773102143334,0.00022001,68684.0,68670.0,0.16972533]
[1773102143335,0.00022001,68684.0,68673.0,0.12743479]
[1773102143535,0.00022001,68684.0,68673.0,0.12728586]
[1773102143740,0.00022001,68684.0,68675.0,0.12743479]
[1773102143954,0.00148,68692.0,68675.0,0.12743479]
[1773102144165,0.00562,68696.0,68675.0,0.12743479]
[1773102144166,0.00736153,68693.0,68675.0,0.12743479]
[1773102145985,0.00736153,68693.0,68676.0,0.07265672]
[1773102146273,0.00736153,68693.0,68677.0,0.12743479]
[1773102146453,0.00736153,68690.0,68678.0,0.00148]
[1773102146659,0.00736153,68695.0,68679.0,0.12743479]
[1773102147506,0.00033491,68691.0,68679.0,0.12743479]
[1773102148563,0.00033491,68691.0,68680.0,0.07280139]
[1773102149517,0.00033491,68691.0,68680.0,0.07265247]
[1773102150300,0.00562,68696.0,68681.0,0.12743479]
[1773102150517,0.0057148,68696.0,68683.0,0.12743479]
[1773102150749,0.0057148,68696.0,68684.0,0.12891479]
[1773102150962,0.00753553,68699.0,68684.0,0.12891479]
[1773102151085,0.00753553,68699.0,68685.0,0.12743479]
[1773102152477,0.00753553,68699.0,68686.0,0.07279503]
[1773102153659,0.00753553,68699.0,68686.0,0.20251993]
[1773102154076,0.00753553,68699.0,68687.0,0.1297249]
[1773102154299,0.16956267,68727.0,68689.0,0.16972533]
[1773102154499,0.00736153,68713.0,68692.0,0.1297249]
[1773102154715,0.00038,68725.0,68702.0,0.00263847]
[1773102155016,0.00477239,68722.0,68705.0,0.1297249]
[1773102155216,0.00477239,68722.0,68705.0,0.12957601]
[1773102155766,0.03038,68725.0,68702.0,0.1297249]
[1773102155767,0.00477239,68724.0,68702.0,0.1297249]
[1773102156002,0.00477239,68724.0,68704.0,0.1297249]
[1773102156203,0.00488732,68724.0,68706.0,0.1297249]
[1773102156407,0.00488732,68724.0,68708.0,0.1297249]
[1773102156581,0.03488732,68724.0,68709.0,0.07277067]
[1773102156784,0.03488732,68724.0,68710.0,0.1297249]
[1773102157184,0.03488732,68724.0,68710.0,0.12957602]
[1773102157518,0.00477239,68723.0,68710.0,0.12957602]
[1773102159322,0.00477239,68723.0,68711.0,0.07276855]
[1773102159943,0.00011493,68724.0,68712.0,0.1297249]
[1773102160277,0.00011493,68724.0,68714.0,0.1297249]
[1773102161647,0.00011493,68724.0,68715.0,0.07276431]
[1773102162448,0.03,68731.0,68717.0,0.00263847]
[1773102162656,0.1940826,68740.0,68722.0,0.1297249]
[1773102162864,0.1940826,68740.0,68725.0,0.00263847]
[1773102163087,0.03,68739.0,68728.0,0.1297249]
[1773102163327,0.0002196,68747.0,68730.0,0.1297249]
[1773102163516,0.0002196,68747.0,68720.0,0.16943959]
[1773102163517,0.00479786,68757.0,68741.0,0.1297249]
[1773102163630,0.13227622,68750.0,68731.0,0.07274737]
[1773102163975,0.0783455,68752.0,68731.0,0.07274737]
[1773102163976,0.03,68745.0,68731.0,0.07274737]
[1773102164193,0.00479786,68744.0,68732.0,0.00148]
[1773102164808,0.00518079,68744.0,68732.0,0.00148]
[1773102165240,0.03,68741.0,68731.0,0.00148]
[1773102165447,0.00479786,68740.0,68731.0,0.00148]
[1773102165818,0.00479786,68740.0,68727.0,0.07274949]
[1773102165819,0.00479786,68736.0,68727.0,0.07275086]
[1773102166020,0.00479786,68736.0,68725.0,0.00171]
[1773102166021,0.00022001,68731.0,68725.0,0.00171]
[1773102166361,0.00475786,68730.0,68721.0,0.00148]
[1773102166726,0.03,68728.0,68711.0,0.0727683]
[1773102166940,0.00479786,68724.0,68712.0,0.00148]
[1773102167968,0.00479786,68723.0,68713.0,0.07276643]
[1773102168118,0.00479786,68723.0,68713.0,0.07424643]
[1773102168559,0.00479786,68723.0,68714.0,0.00148]
[1773102168761,0.00479786,68723.0,68713.0,0.07276643]
[1773102169127,0.00488765,68722.0,68713.0,0.07436136]
[1773102169467,0.00488765,68722.0,68713.0,0.07288136]
[1773102169673,0.03,68723.0,68713.0,0.07436136]
[1773102170065,0.00148,68727.0,68713.0,0.07436136]
[1773102170254,0.00488765,68726.0,68713.0,0.07436136]
[1773102171063,0.00488765,68723.0,68713.0,0.07436136]
[1773102171272,0.00488765,68721.0,68713.0,0.07436136]
[1773102171875,0.03,68722.0,68713.0,0.07436136]
[1773102172188,0.00488765,68725.0,68713.0,0.07436136]
[1773102172887,0.00488765,68722.0,68713.0,0.07436136]
[1773102173469,0.00488765,68722.0,68713.0,0.07276643]
[1773102173669,0.00488765,68722.0,68714.0,0.00148]
[1773102173876,0.00488765,68722.0,68713.0,0.07292643]
[1773102173877,0.00488765,68721.0,68713.0,0.07292643]
[1773102174093,0.00488765,68721.0,68714.0,0.00148]
[1773102174345,0.00488765,68721.0,68715.0,0.07276431]
[1773102175064,0.00510766,68731.0,68718.0,0.13212167]
[1773102175298,0.00022001,68732.0,68720.0,0.13212167]
[1773102175407,0.00488765,68731.0,68721.0,0.00148]
[1773102176314,0.03,68734.0,68722.0,0.0727569]
[1773102176922,0.03,68734.0,68722.0,0.08040855]
[1773102177309,0.03,68733.0,68722.0,0.08040855]
[1773102178292,0.03,68732.0,68722.0,0.08040855]
[1773102178882,0.03,68732.0,68722.0,0.0727569]
[1773102179291,0.03,68731.0,68722.0,0.0727569]
[1773102180306,0.03,68728.0,68716.0,0.00148]
[1773102180506,0.03,68726.0,68716.0,0.01025361]
[1773102180710,0.03,68726.0,68718.0,0.01025361]
[1773102181212,0.03,68726.0,68717.0,0.07276219]
[1773102181665,0.03,68725.0,68717.0,0.07276219]
[1773102182298,0.15947375,68725.0,68714.0,0.07276537]
[1773102182503,0.15947375,68725.0,68715.0,0.00148]
[1773102182777,0.03,68721.0,68702.0,0.28954787]
[1773102183027,0.03,68717.0,68702.0,0.07277739]
[1773102183158,0.12947375,68712.0,68701.0,0.07277905]
[1773102183361,0.03,68707.0,68697.0,0.07426312]
[1773102183562,0.03,68707.0,68697.0,0.07278312]
[1773102183765,0.03,68707.0,68700.0,0.0002]
[1773102184448,0.00148,68708.0,68700.0,0.0002]
[1773102185611,0.03148,68708.0,68701.0,0.01025361]
[1773102185809,0.00148,68711.0,68701.0,0.01025361]
[1773102186029,0.07287329,68721.0,68704.0,0.12489138]
[1773102186030,0.00011484,68721.0,68704.0,0.12489138]
[1773102186218,0.00011484,68721.0,68707.0,0.01025361]
[1773102186442,0.00011484,68721.0,68709.0,0.01025361]
[1773102186643,0.00011484,68721.0,68711.0,0.01025361]
[1773102186997,0.03,68720.0,68701.0,0.07277914]
[1773102187199,0.00011484,68721.0,68702.0,0.00148]
[1773102187200,0.03,68714.0,68702.0,0.00148]
[1773102187503,0.03,68714.0,68701.0,0.07277914]
[1773102187707,0.03,68714.0,68702.0,0.00148]
[1773102188286,0.03,68714.0,68701.0,0.07277914]
[1773102188443,0.03,68714.0,68703.0,0.00148]
[1773102189212,0.03,68714.0,68704.0,0.07277596]
[1773102190313,0.03,68713.0,68704.0,0.07277596]
[1773102191083,0.03148,68716.0,68704.0,0.07277596]
[1773102191315,0.00022001,68714.0,68704.0,0.07277596]
[1773102193002,4.13e-05,68714.0,68704.0,0.07277596]
[1773102193475,4.13e-05,68714.0,68705.0,0.01025361]
[1773102193914,0.0300413,68714.0,68705.0,0.01025361]
[1773102194884,4.13e-05,68714.0,68705.0,0.01025361]
[1773102195289,4.13e-05,68714.0,68706.0,0.07277384]
[1773102195725,4.13e-05,68714.0,68707.0,0.01025361]
[1773102197099,4.13e-05,68714.0,68706.0,0.07277384]
[1773102197379,4.13e-05,68714.0,68705.0,0.07277384]
[1773102198824,0.03,68712.0,68702.0,0.07277808]
[1773102199045,0.03,68712.0,68703.0,0.07425596]
[1773102199683,0.1027676,68712.0,68690.0,0.000281]
[1773102199835,0.03,68708.0,68696.0,0.07988359]
[1773102200474,0.03,68708.0,68700.0,0.0002]
[1773102200693,0.03,68706.0,68695.0,0.074265]
[1773102200904,0.03,68706.0,68696.0,0.07278359]
[1773102201105,0.00022001,68712.0,68698.0,0.01025361]
[1773102201307,0.07298755,68712.0,68696.0,0.07278359]
[1773102201462,0.12832013,68711.0,68695.0,0.07426537]
[1773102201843,0.03,68708.0,68695.0,0.00148]
[1773102202216,0.03,68708.0,68694.0,0.07426642]
[1773102202776,0.03,68708.0,68694.0,0.00148]
[1773102202983,0.03,68708.0,68693.0,0.0002]
[1773102202984,0.03,68704.0,68693.0,0.0002]
[1773102203188,0.15980013,68704.0,68692.0,0.0727886]
[1773102205296,0.03,68698.0,68687.0,0.07279382]
[1773102205996,0.03,68698.0,68684.0,0.00148]
[1773102205997,0.03,68694.0,68684.0,0.00148]
[1773102206201,0.03,68694.0,68683.0,0.00148]
[1773102206404,0.03,68694.0,68683.0,0.0015748]
[1773102206750,0.07277702,68704.0,68683.0,0.0015748]
[1773102206751,0.00148,68699.0,68686.0,0.01025361]
[1773102207000,0.03,68707.0,68688.0,0.12489138]
[1773102207173,0.00148,68706.0,68694.0,0.01025361]
[1773102207483,0.00148,68705.0,68694.0,0.01025361]
[1773102207883,0.00148,68704.0,68694.0,0.01025361]
[1773102208906,0.00148,68705.0,68694.0,0.01025361]
[1773102209291,0.1042552,68705.0,68694.0,0.01025361]
[1773102209488,0.1042552,68705.0,68693.0,0.07278702]
[1773102210071,0.03148,68705.0,68693.0,0.07278702]
[1773102211367,0.03148,68705.0,68692.0,0.08304027]
[1773102211778,0.03,68704.0,68692.0,0.08304027]
[1773102212818,0.03148,68705.0,68692.0,0.07278666]
[1773102213131,0.03148,68705.0,68693.0,0.01067308]
[1773102213347,0.07276376,68716.0,68695.0,0.12862002]
[1773102213495,0.0727633,68716.0,68699.0,0.12862002]
[1773102213690,0.00148,68713.0,68701.0,0.01067308]
[1773102213919,0.0015213,68714.0,68703.0,0.01067308]
[1773102214298,4.13e-05,68714.0,68703.0,0.01067308]
[1773102214958,0.0300413,68714.0,68703.0,0.01067308]
[1773102215323,0.0300413,68714.0,68704.0,0.07277596]
[1773102215530,0.0300413,68714.0,68704.0,0.08344904]
[1773102215943,4.13e-05,68714.0,68704.0,0.08344904]
[1773102216289,0.00022001,68721.0,68704.0,0.07277596]
[1773102216499,0.00033483,68719.0,68708.0,0.01067308]
[1773102216709,0.00033483,68719.0,68710.0,0.01067308]
[1773102218179,0.00033483,68719.0,68711.0,0.07276855]
[1773102218569,0.00033483,68719.0,68712.0,0.01067308]
[1773102220104,0.00033483,68719.0,68713.0,0.07276643]
[1773102220591,0.00033483,68719.0,68712.0,0.08343951]
[1773102220825,0.16084399,68717.0,68703.0,0.072977]
[1773102221070,0.16232399,68717.0,68703.0,0.072977]
[1773102221298,0.03,68717.0,68704.0,0.12862002]
[1773102221499,0.03,68717.0,68708.0,0.12862002]
[1773102221682,0.03,68717.0,68703.0,0.074457]
[1773102221683,0.03,68716.0,68706.0,0.21695482]
[1773102221938,0.03,68716.0,68703.0,0.07297662]
[1773102222320,0.03,68716.0,68704.0,0.00148]
[1773102223292,0.10276383,68716.0,68704.0,0.00148]
[1773102224513,0.03,68714.0,68701.0,0.07277913]
[1773102224723,0.03,68712.0,68702.0,0.00148]
[1773102225611,0.03,68711.0,68702.0,0.00148]
[1773102226360,0.03,68711.0,68698.0,0.21695482]
[1773102226684,0.03,68711.0,68696.0,0.0002]
[1773102226685,0.03,68709.0,68696.0,0.07446443]
[1773102226911,0.16009703,68709.0,68696.0,0.07298443]
[1773102227083,0.16009703,68709.0,68696.0,0.0002]
[1773102227861,0.16009703,68709.0,68694.0,0.00148]
[1773102228072,0.16009703,68709.0,68694.0,0.07426649]
[1773102228605,0.03,68707.0,68694.0,0.07426649]
[1773102229118,0.03,68707.0,68698.0,0.01067308]
[1773102229673,0.03,68708.0,68698.0,0.01067308]
[1773102230893,0.03,68707.0,68699.0,0.07278126]
[1773102231134,0.03,68707.0,68699.0,0.08345434]
[1773102232023,0.03,68706.0,68699.0,0.01067308]
[1773102232628,0.03,68706.0,68698.0,0.07278222]
[1773102232827,0.03,68706.0,68695.0,0.0727855]
[1773102232990,0.03,68707.0,68695.0,0.0727855]
[1773102233681,0.10277341,68707.0,68694.0,0.0742664]
[1773102233866,0.10425341,68707.0,68694.0,0.0742664]
[1773102234824,0.10425341,68707.0,68694.0,0.17531604]
[1773102235032,0.10425341,68707.0,68695.0,0.0002]
[1773102235164,0.10447342,68707.0,68695.0,0.0002]
[1773102235364,0.10447342,68707.0,68695.0,0.17403604]
[1773102239220,0.10447342,68707.0,68695.0,0.0002]
[1773102240402,0.03,68706.0,68695.0,0.30894943]
[1773102241408,0.10277398,68706.0,68696.0,0.08345752]
[1773102242017,0.03,68705.0,68696.0,0.07278444]
[1773102242217,0.07277218,68708.0,68698.0,0.01067308]
[1773102242446,0.00022001,68714.0,68703.0,0.01067308]
[1773102242776,0.00033483,68719.0,68709.0,0.01067308]
[1773102242924,0.03,68720.0,68709.0,0.12424031]
[1773102243120,0.03,68720.0,68710.0,0.01067308]
[1773102243549,0.10275912,68720.0,68710.0,0.01215308]
[1773102243727,0.00022001,68714.0,68710.0,0.01215308]
[1773102243944,0.00562,68724.0,68712.0,0.01067308]
[1773102244285,0.00033,68735.0,68717.0,0.12865182]
[1773102244501,0.07307336,68735.0,68718.0,0.01215308]
[1773102244691,0.07307336,68735.0,68720.0,0.17383604]
[1773102244880,0.07307336,68735.0,68721.0,0.17383604]
[1773102245180,0.03,68734.0,68720.0,0.01067308]
[1773102246275,0.03,68734.0,68721.0,0.07275796]
[1773102246474,0.03,68734.0,68721.0,0.08343104]
[1773102246809,0.10274509,68734.0,68721.0,0.08343104]
[1773102248501,0.10274509,68734.0,68721.0,0.07275796]
[1773102248708,0.10422509,68734.0,68722.0,0.01067308]
[1773102248854,0.03,68733.0,68724.0,0.01067308]
[1773102249479,0.03,68733.0,68724.0,0.12865182]
[1773102249686,0.03,68733.0,68725.0,0.01067308]
[1773102249895,0.03033,68735.0,68725.0,0.01067308]
[1773102250921,0.03,68734.0,68725.0,0.01067308]
[1773102252018,0.07421354,68746.0,68727.0,0.01067308]
[1773102252413,0.13068215,68741.0,68728.0,0.00148]
[1773102252808,0.00148,68740.0,68721.0,0.01067308]
[1773102252951,0.03,68735.0,68720.0,0.00148]
[1773102253182,0.16068215,68733.0,68720.0,0.00148]
[1773102253372,0.16068215,68733.0,68718.0,0.07296021]
[1773102253590,0.03,68733.0,68720.0,0.01067308]
[1773102253994,0.03,68733.0,68720.0,0.01215308]
[1773102254180,0.00148,68734.0,68720.0,0.01215308]
[1773102255139,0.00148,68734.0,68721.0,0.07275796]
[1773102255749,0.03,68732.0,68718.0,0.0002]
[1773102255954,0.16068215,68732.0,68718.0,0.0002]
[1773102256339,0.03,68732.0,68718.0,0.07296086]
[1773102256739,0.03,68732.0,68719.0,0.01067308]
[1773102257341,0.03,68730.0,68718.0,0.0002]
[1773102257921,0.16068215,68730.0,68718.0,0.0002]
[1773102258257,0.03,68730.0,68718.0,0.0002]
[1773102258967,0.03,68729.0,68721.0,0.01067308]
[1773102259142,0.00022001,68735.0,68722.0,0.12865182]
[1773102259311,0.07444335,68735.0,68724.0,0.01067308]
[1773102259935,0.03148,68734.0,68724.0,0.01067308]
[1773102260371,0.03148,68734.0,68719.0,0.07276008]
[1773102260565,0.03148,68734.0,68719.0,0.00148]
[1773102261921,0.03,68732.0,68719.0,0.07276007]
[1773102262061,0.03,68732.0,68721.0,0.01067308]
[1773102262428,0.03,68732.0,68719.0,0.07276007]
[1773102262429,0.00022001,68735.0,68726.0,0.12865182]
[1773102262708,0.00148,68741.0,68730.0,0.01067308]
[1773102263010,0.10295586,68742.0,68731.0,0.01067308]
[1773102263247,0.03,68739.0,68720.0,0.01067308]
[1773102263434,0.03,68739.0,68722.0,0.00148]
[1773102263594,0.03,68739.0,68723.0,0.01067308]
[1773102263795,0.03038293,68739.0,68728.0,0.01067308]
[1773102263996,0.03038293,68739.0,68731.0,0.12865182]
[1773102264197,0.00038293,68739.0,68732.0,0.01067308]
[1773102264409,0.00038293,68739.0,68728.0,0.00148]
[1773102264410,0.00038293,68739.0,68729.0,0.01067308]
[1773102264610,0.00038293,68739.0,68730.0,0.12865182]
[1773102264949,0.00022001,68742.0,68732.0,0.12865182]
[1773102265133,0.07307087,68742.0,68728.0,0.00148]
[1773102265341,0.03,68741.0,68728.0,0.01215308]
[1773102265501,0.03,68741.0,68730.0,0.12865182]
[1773102265700,0.03,68741.0,68731.0,0.01067308]
[1773102265911,0.03,68741.0,68732.0,0.01067308]
[1773102266316,0.03,68740.0,68732.0,0.01067308]
[1773102266546,0.00022001,68739.0,68732.0,0.01067308]
[1773102267410,0.03022001,68739.0,68731.0,0.00148]
[1773102267631,0.03022001,68739.0,68731.0,0.07422736]
[1773102267844,0.03022001,68739.0,68731.0,0.08490044]
[1773102268053,0.03022001,68739.0,68731.0,0.01215308]
[1773102268455,0.00022001,68739.0,68732.0,0.01067308]
[1773102269524,0.03,68740.0,68734.0,0.01067308]
[1773102269705,0.07272716,68751.0,68734.0,0.01067308]
[1773102269921,0.07420621,68751.0,68737.0,0.12865182]
[1773102270065,0.07420621,68751.0,68740.0,0.01067308]
[1773102270274,0.00562,68752.0,68741.0,0.01067308]
[1773102270608,0.00562,68752.0,68737.0,0.00148]
[1773102270609,0.00562,68752.0,68743.0,0.12865182]
[1773102270773,0.00562,68752.0,68744.0,0.01067308]
[1773102270975,0.03,68755.0,68744.0,0.01067308]
[1773102271178,0.007,68760.0,68747.0,0.12865182]
[1773102271407,0.007,68760.0,68750.0,0.01067308]
[1773102271813,0.007,68760.0,68751.0,0.01067308]
[1773102272014,0.007,68760.0,68752.0,0.01067308]
[1773102272252,0.07271159,68765.0,68751.0,0.07272615]
[1773102272253,0.00012,68767.0,68754.0,0.12865182]
[1773102272467,0.00012,68767.0,68752.0,0.01067308]
[1773102272661,0.07270498,68772.0,68753.0,0.01067308]
[1773102272860,0.07418498,68772.0,68757.0,0.01067308]
[1773102273065,0.07418498,68772.0,68759.0,0.01067308]
[1773102273426,0.00148,68771.0,68760.0,0.01067308]
[1773102273636,0.03148,68771.0,68760.0,0.01067308]
[1773102274057,0.10281988,68771.0,68761.0,0.01067308]
[1773102274269,0.00048,68774.0,68762.0,0.11938187]
[1773102274480,0.07268895,68787.0,68765.0,0.11938187]
[1773102274684,0.10296642,68786.0,68766.0,0.11938187]
[1773102274815,0.00148,68785.0,68767.0,0.00921744]
[1773102275021,0.00148,68785.0,68767.0,0.01069744]
[1773102275234,0.00148,68785.0,68769.0,0.00921744]
[1773102275447,0.030277,68786.0,68770.0,0.00921744]
[1773102275645,0.03,68785.0,68773.0,0.00921744]
[1773102275952,0.00148,68789.0,68779.0,0.00921744]
[1773102276150,0.00148,68789.0,68780.0,0.00921744]
[1773102276358,0.00148,68789.0,68778.0,0.00460872]
[1773102276587,0.00148,68789.0,68780.0,0.00460872]
[1773102276793,0.00148,68789.0,68780.0,0.00143652]
[1773102277021,0.03,68787.0,68779.0,0.00148]
[1773102277224,0.00395474,68786.0,68774.0,0.00148]
[1773102277777,0.03,68784.0,68767.0,0.00450551]
[1773102277980,0.00395474,68779.0,68762.0,0.00462032]
[1773102278210,0.03395474,68778.0,68763.0,0.00148]
[1773102278448,0.00148,68777.0,68763.0,0.00598551]
[1773102278644,0.00148,68777.0,68763.0,0.00148]
[1773102278844,0.00148,68777.0,68764.0,0.00450551]
[1773102279114,0.00148,68778.0,68764.0,0.00450551]
[1773102279522,0.00543474,68778.0,68764.0,0.00450551]
[1773102279750,0.00543474,68778.0,68765.0,0.00148]
[1773102280209,0.07269872,68777.0,68765.0,0.07419103]
[1773102280366,0.07269872,68777.0,68763.0,0.07271288]
[1773102280367,0.00395474,68775.0,68763.0,0.07271288]
[1773102280578,0.00395474,68775.0,68762.0,0.00011481]
[1773102280579,0.03,68774.0,68762.0,0.00011481]
[1773102280859,0.03,68772.0,68762.0,0.00011481]
[1773102281030,0.03148,68772.0,68762.0,0.00011481]
[1773102281812,0.00148,68772.0,68762.0,0.00011481]
[1773102282017,0.00148,68772.0,68762.0,0.07282925]
[1773102282222,0.00148,68772.0,68763.0,0.07768053]
[1773102282223,0.03148,68772.0,68763.0,0.07768053]
[1773102282400,0.03148,68772.0,68763.0,0.07271351]
[1773102282619,0.03,68772.0,68763.0,0.07271351]
[1773102282818,0.07269773,68778.0,68764.0,0.11938187]
[1773102283021,0.00148,68777.0,68764.0,0.11938187]
[1773102283224,0.00863755,68776.0,68763.0,0.07271351]
[1773102283394,0.00863755,68773.0,68762.0,0.07282902]
[1773102283814,0.00863755,68771.0,68762.0,0.00011481]
[1773102284209,0.03,68771.0,68762.0,0.0728292]
[1773102284416,0.07417971,68777.0,68762.0,0.0728292]
[1773102284417,0.00863755,68785.0,68763.0,0.11938187]
[1773102284635,0.00863755,68785.0,68765.0,0.11938187]
[1773102284848,0.00863755,68785.0,68766.0,0.00148]
[1773102285074,0.00863755,68785.0,68767.0,0.11938187]
[1773102285480,0.00863755,68784.0,68767.0,0.11938187]
[1773102286833,0.03,68783.0,68768.0,0.1920901]
[1773102287227,0.03863755,68783.0,68768.0,0.1920901]
[1773102287676,0.03,68783.0,68768.0,0.1920901]
[1773102287880,0.03,68778.0,68762.0,0.00011481]
[1773102288027,0.03,68773.0,68762.0,0.00011481]
[1773102288226,0.07269234,68784.0,68752.0,0.07834426]
[1773102288227,0.00863755,68770.0,68753.0,0.07272409]
[1773102288456,0.00863755,68770.0,68753.0,0.07420409]
[1773102288457,0.03,68767.0,68753.0,0.07420409]
[1773102288661,0.03,68765.0,68753.0,0.07420409]
[1773102288976,0.03,68765.0,68754.0,0.11938187]
[1773102289276,0.00148,68774.0,68754.0,0.13031987]
[1773102289487,0.07269469,68781.0,68761.0,0.13031987]
[1773102289686,0.03148,68780.0,68763.0,0.13031987]
[1773102290106,0.00148,68779.0,68763.0,0.13031987]
[1773102290316,0.00148,68778.0,68763.0,0.13031987]
[1773102290519,0.00148,68777.0,68763.0,0.13031987]
[1773102290925,0.00148,68777.0,68764.0,0.07271246]
[1773102291130,0.00148,68777.0,68765.0,0.13031987]
[1773102291554,0.00148,68779.0,68765.0,0.13031987]
[1773102292121,0.03,68781.0,68765.0,0.13031987]
[1773102292523,0.03148,68781.0,68765.0,0.13031987]
[1773102292939,0.00894308,68780.0,68764.0,0.07271246]
[1773102293157,0.03894308,68779.0,68764.0,0.07271246]
[1773102293552,0.03,68779.0,68763.0,0.07271246]
[1773102293766,0.03,68773.0,68762.0,0.07291246]
[1773102294091,0.00894308,68766.0,68762.0,0.07291454]
[1773102294265,0.03,68765.0,68762.0,0.07291454]
[1773102294465,0.00894308,68770.0,68762.0,0.07291454]
[1773102294668,0.00148,68772.0,68762.0,0.07291454]
[1773102294871,0.01042308,68772.0,68762.0,0.07291454]
[1773102295070,0.01042308,68772.0,68757.0,0.00148]
[1773102295071,0.00894308,68771.0,68757.0,0.07419979]
[1773102295287,0.07418467,68772.0,68757.0,0.07419979]
[1773102295288,0.03,68766.0,68757.0,0.07419979]
[1773102295490,0.03,68766.0,68758.0,0.13031987]
[1773102295691,0.00148,68770.0,68758.0,0.13031987]
[1773102295891,0.00148,68770.0,68757.0,0.07271979]
[1773102296097,0.01042308,68770.0,68757.0,0.07271979]
[1773102296504,0.15790685,68767.0,68757.0,0.07271979]
[1773102296707,0.03894308,68765.0,68757.0,0.07271979]
[1773102297176,0.03894308,68765.0,68755.0,0.0002]
[1773102297360,0.03,68760.0,68755.0,0.0002]
[1773102297585,0.03,68758.0,68755.0,0.0002]
[1773102297724,0.03,68756.0,68755.0,0.0002]
[1773102297927,0.03,68756.0,68750.0,0.00023]
[1773102298209,0.03894308,68756.0,68750.0,0.07295713]
[1773102298388,0.03,68756.0,68750.0,0.07295713]
[1773102298749,0.03,68755.0,68750.0,0.07295713]
[1773102299201,0.03,68755.0,68750.0,0.00023]
[1773102299345,0.03,68753.0,68746.0,0.17330745]
[1773102299550,0.03,68749.0,68743.0,0.17330745]
[1773102299774,0.03894308,68747.0,68744.0,0.07303107]
[1773102299972,0.03,68747.0,68744.0,0.07303107]
[1773102300174,0.01042308,68752.0,68744.0,0.07303107]
[1773102300381,0.00894308,68763.0,68745.0,0.13031987]
[1773102300736,0.00894308,68763.0,68755.0,0.0002]
[1773102300737,0.00159473,68763.0,68755.0,0.0002]
[1773102300943,0.00148,68767.0,68756.0,0.13031987]
[1773102301118,0.03,68770.0,68758.0,0.13031987]
[1773102301320,0.00148,68772.0,68761.0,0.13031987]
[1773102301552,0.00894308,68771.0,68759.0,0.2460252]
[1773102301751,0.03,68769.0,68759.0,0.2460252]
[1773102301956,0.03,68763.0,68758.0,0.17330745]